Cogmind - Beta 9.4 @@@ ROGUE MODE // 2020.01.19 @ 01:08:10 // Winter2019/RPGLIKE Player: Cookie Result: Self-destructed Performance ------------- Evolutions (1) 500 Regions Visited (4) 800 Robots Destroyed (20) 100 Value Destroyed (505) 505 Prototype IDs (8) 160 Alien Tech Used (0) 0 Bonus (0) 0 TOTAL SCORE: 2065 Bonus ------- None Cogmind --------- Core Integrity 345/1200 Matter 300/300 Energy 265/265 System Corruption 0% Temperature Cool (0) Movement Flying (37) Location -9/Storage Parts ------- > --- POWER (3) -------- Improved Ion Engine > --- PROPULSION (3) --- Flight Unit Flight Unit > --- UTILITY (4) ------ Cooling System Weight Redist. System Signal Interpreter > --- WEAPON (2) ------- Heavy Hammer > --- INVENTORY (1) ---- Advanced Beam Cannon Peak State ------------ > --- POWER ------------ Light Ion Engine Improved Ion Engine > --- PROPULSION ------- Flight Unit Flight Unit Flight Unit > --- UTILITY ---------- Cooling System Weight Redist. System Sensor Array Signal Interpreter > --- WEAPON ----------- Advanced Beam Cannon Heavy Hammer > --- INVENTORY -------- (None) [Rating: 17] Favorites ----------- Power Light Ion Engine Engine Light Ion Engine Propulsion Flight Unit Wheel Wheel Flight Unit Flight Unit Utility Signal Interpreter Device Cooling System Processor Signal Interpreter Weapon Medium Laser Energy Gun Medium Laser Energy Cannon Advanced Beam Cannon Ballistic Gun Light Assault Rifle Impact Weapon Heavy Hammer Build | -11 -10 -10 -9 -9 ------- Run | Scr Mat Min Mat Sto Slots Evolved 8 | 4 . . 3 1 Power 2 | 1 . . . 1 Propulsion 2 | 1 . . 1 . Utility 3 | 1 . . 2 . Weapon 1 | 1 . . . . Parts Attached 22 | 6 6 . 9 1 Power 3 | 2 1 . . . Engine 3 | 2 1 . . . Core . | . . . . . Reactor . | . . . . . Propulsion 5 | 2 . . 3 . Treads . | . . . . . Leg . | . . . . . Wheel 2 | 2 . . . . Hover . | . . . . . Flight 3 | . . . 3 . Utility 7 | . 3 . 4 . Device 5 | . 1 . 4 . Storage . | . . . . . Processor 2 | . 2 . . . Hackware . | . . . . . Protection . | . . . . . Artifact . | . . . . . Weapon 7 | 2 2 . 2 1 Energy Gun 3 | 1 2 . . . Energy Cannon 1 | . . . . 1 Ballistic Gun 2 | 1 . . 1 . Ballistic Cannon . | . . . . . Launcher . | . . . . . Special Weapon . | . . . . . Impact Weapon 1 | . . . 1 . Slashing Weapon . | . . . . . Piercing Weapon . | . . . . . Special Melee Weapon . | . . . . . Unidentified Prototypes 1 | . . . . 1 Parts Lost 3 | . . . . 3 Power 1 | . . . . 1 Propulsion 1 | . . . . 1 Utility 1 | . . . . 1 Weapon . | . . . . . Highest Loss Streak 3 | . . . . 3 Average Slot Usage (%) 89 | . 87 100 87 89 Engine 21 | . 25 25 20 16 Wheel 13 | . 25 25 12 . Flight 11 | . . . 10 25 Device 11 | . 2 . 6 25 Processor 12 | . 10 25 18 8 Energy Gun 10 | . 17 25 15 . Ballistic Gun 4 | . 6 . 1 4 Impact Weapon 3 | . . . 2 8 Naked Turns . | . . . . . Heaviest Build 17 | 9 16 14 17 17 Greatest Support 25 | 25 25 25 25 23 Greatest Overweight (x) 1 | . . . 1 . Average Overweight (x) . | . . . . . Largest Inventory Capacity 1 | 1 1 1 1 1 Average Capacity . | . 1 1 1 1 Most Carried 1 | . 1 1 1 1 Average Carried . | . . 1 . . Final Capacity 1 | 1 1 1 1 1 Final Carried 1 | . 1 1 . 1 Class Distribution -------------------- 100% | Mutant Dominant Class ---------------- Mutant | -10/Materials Mutant | -10/Mines Mutant | -9/Materials Mutant | -9/Storage Resources | -11 -10 -10 -9 -9 ----------- Run | Scr Mat Min Mat Sto Matter Collected 424 | 260 19 45 60 40 Remotely . | . . . . . Salvage Created 677 | . 19 . 236 422 Parts 30 | . 1 . 15 14 Haulers Intercepted 1 | . . . . 1 Recyclers Shooed 1 | . 1 . . . Parts Field Recycled . | . . . . . Retrieved Matter . | . . . . . Parts Self-Destructed . | . . . . . Prevented . | . . . . . Kills | -11 -10 -10 -9 -9 ------- Run | Scr Mat Min Mat Sto Combat Hostiles Destroyed 15 | . . . 8 7 Melee 3 | . . . . 3 Guns 8 | . . . 8 . Classes Destroyed 7 | . 1 . 4 2 Worker 1 | . 1 . . . Hauler 1 | . . . . 1 Recycler 1 | . . . . 1 Operator 2 | . . . 1 1 Swarmer 5 | . . . 5 . Grunt 6 | . . . 2 4 Sentry 4 | . . . 1 3 Best Kill Streak 8 | . 1 . 8 4 Combat Bots Only 8 | . . . 8 3 Max Kills in Single Turn 1 | . 1 . 1 1 Gunslinging . | . . . . . Exploded . | . . . . . Melee 1 | . . . . 1 Uniques/NPCs Destroyed . | . . . . . Combat | -11 -10 -10 -9 -9 -------- Run | Scr Mat Min Mat Sto Damage Taken 1759 | . 1 45 566 1147 Core 1443 | . . 37 459 947 Absorbed by Shields . | . . . . . Redirected to Core 1047 | . . 27 345 675 Core Remaining (%) 96 | 100 . 93 . . Volleys Fired 29 | . 11 . 18 . Largest 2 | . 2 . 2 . Hottest 90 | . 90 . 90 . Shots Fired 57 | . 21 . 36 . Gun 57 | . 21 . 36 . Cannon . | . . . . . Launcher . | . . . . . Special . | . . . . . Kinetic 9 | . 9 . . . Thermal 28 | . 10 . 18 . Explosive . | . . . . . Electromagnetic 20 | . 2 . 18 . Robot Hit Streak 12 | . 3 . 12 . Robot Miss Streak 6 | . 6 . 4 . Penetration Max . | . . . . . Secondary Targets 2 | . . . 2 . Max Gunslinging Chain 1 | . . . 1 . Shots Hit Robots 82 | . 7 . 29 46 Core Hits 19 | . 3 . 11 5 Critical Hits . | . . . . . Critical Kills . | . . . . . Critical Parts Destroyed . | . . . . . Melee Attacks 56 | . . . 1 55 Impact 56 | . . . 1 55 Slashing . | . . . . . Piercing . | . . . . . Sneak Attacks 5 | . . . 1 4 Combat Hostiles 1 | . . . . 1 Follow-up Attacks . | . . . . . Damage Inflicted 1796 | . 89 . 428 1279 Guns 419 | . 86 . 333 . Cannons . | . . . . . Explosions . | . . . . . Melee 1374 | . . . 95 1279 Ramming 3 | . 3 . . . Kinetic 23 | . 23 . . . Thermal 192 | . 38 . 154 . Explosive . | . . . . . Electromagnetic 204 | . 25 . 179 . Impact 1374 | . . . 95 1279 Slashing . | . . . . . Piercing . | . . . . . Highest Corruption . | . . . . . Average Corruption . | . . . . . Corruption Purged . | . . . . . Overload Shots . | . . . . . Overflow Damage 187 | . . . . 187 Projectiles . | . . . . . Explosions . | . . . . . Melee 187 | . . . . 187 Knockbacks 3 | . . . . 3 Impact 3 | . . . . 3 Kinetic . | . . . . . Secondary . | . . . . . Self-Inflicted Damage 1 | . 1 . . . Shots . | . . . . . Rammed 1 | . 1 . . . Targets Rammed 1 | . 1 . . . Kicked . | . . . . . Crushed . | . . . . . Highest Temperature 302 | . 32 . 302 . Average Temperature 106 | . 12 . 141 . Received Heat Transfer 513 | . . . 84 429 Siege Activations . | . . . . . Robots Corrupted . | . . . . . Combat Hostiles . | . . . . . Parts Fried 2 | . . . . 2 Impact Corruptions 14 | . . . . 14 Robots Melted . | . . . . . Combat Hostiles . | . . . . . Parts Melted 4 | . . . 4 . Heat Transferred 555 | . 111 . 444 . Parts Sabotaged . | . . . . . Parts Stolen . | . . . . . Parts Stripped . | . . . . . Power Chain Reactions . | . . . . . Missiles Intercepted . | . . . . . Alert | -11 -10 -10 -9 -9 ------- Run | Scr Mat Min Mat Sto Peak Influence 351 | . 44 . 265 351 Average Influence 115 | . 21 . 180 221 Maximum Alert Level 1 | . . . 1 1 Low Security (%) 72 | 100 100 100 42 48 Level 1 27 | . . . 57 51 Level 2 . | . . . . . Level 3 . | . . . . . Level 4 . | . . . . . Level 5 . | . . . . . High Security . | . . . . . Max Security . | . . . . . Squads Dispatched 5 | . . . 1 4 Investigation 1 | . . . . 1 Extermination . | . . . . . Reinforcement 2 | . . . 1 1 Assault . | . . . . . Garrison 2 | . . . . 2 Intercept . | . . . . . Construction Impeded . | . . . . . Haulers Reinforced . | . . . . . Stealth | -11 -10 -10 -9 -9 --------- Run | Scr Mat Min Mat Sto Distress Signals 2 | . . . . 2 Communications Jammed . | . . . . . Distress Signals . | . . . . . Times Spotted 28 | . 2 3 11 12 Peak Tracking Total 10 | . 2 3 10 5 Tactical Retreats 1 | . . . . 1 Traps | -11 -10 -10 -9 -9 ------- Run | Scr Mat Min Mat Sto Traps Triggered 1 | . . . . 1 Indirectly . | . . . . . Trap Hack Attempts . | . . . . . Triggered . | . . . . . Disarmed . | . . . . . Reprogrammed . | . . . . . Reused . | . . . . . Traps Extracted . | . . . . . Installed . | . . . . . Triggered . | . . . . . Machines | -11 -10 -10 -9 -9 ---------- Run | Scr Mat Min Mat Sto Machines Disabled 3 | . . . 2 1 Max in Single Turn 1 | . . . 1 1 Machines Sabotaged . | . . . . . Garrisons Compromised . | . . . . . Overloaded Fab Kills . | . . . . . Fab Network Shutdowns . | . . . . . Hacking | -11 -10 -10 -9 -9 --------- Run | Scr Mat Min Mat Sto Machines Accessed 7 | . 4 . 1 2 Terminals 7 | . 4 . 1 2 Fabricators . | . . . . . Repair Stations . | . . . . . Recycling Units . | . . . . . Scanalyzers . | . . . . . Garrison Access . | . . . . . Total Hacks 25 | . 17 . 2 6 Successful 13 | . 9 . . 4 Failed 12 | . 8 . 2 2 Catastrophic 4 | . 2 . 1 1 Database Lockouts . | . . . . . Manual 15 | . 12 . 2 1 Terminals 25 | . 17 . 2 6 Fabricators . | . . . . . Repair Stations . | . . . . . Recycling Units . | . . . . . Scanalyzers . | . . . . . Garrison Access . | . . . . . Terminal Hacks 13 | . 9 . . 4 Record 1 | . 1 . . . Part Schematic 1 | . 1 . . . Robot Analysis 1 | . 1 . . . Prototype ID Bank 4 | . 2 . . 2 Branch Access Points 1 | . 1 . . . Terminal Index 2 | . 1 . . 1 Locate Traps 1 | . . . . 1 Security Status 1 | . 1 . . . Zone Layout 1 | . 1 . . . Fabricator Hacks . | . . . . . Repair Station Hacks . | . . . . . Recycling Unit Hacks . | . . . . . Scanalyzer . | . . . . . Garrison Access Hacks . | . . . . . Unauthorized Hacks . | . . . . . Terminals . | . . . . . Fabricators . | . . . . . Repair Stations . | . . . . . Recycling Units . | . . . . . Scanalyzers . | . . . . . Garrison Access . | . . . . . Data Cores Recovered . | . . . . . Used . | . . . . . Hacking Detections 7 | . 4 . 1 2 Full Trace Events . | . . . . . Feedback Events . | . . . . . Feedback Blocked . | . . . . . Robot Schematics Acquired . | . . . . . Robots Built . | . . . . . Matter . | . . . . . Time . | . . . . . Total Robot Build Rating . | . . . . . Part Schematics Acquired 1 | . 1 . . . Parts Built . | . . . . . Matter . | . . . . . Time . | . . . . . Total Part Build Rating . | . . . . . Parts Repaired . | . . . . . Time . | . . . . . Parts Recycled . | . . . . . Recycled Matter . | . . . . . Retrieved Matter . | . . . . . Retrieved Components . | . . . . . Parts Scanalyzed . | . . . . . Part Schematics Acquired . | . . . . . Parts Damaged . | . . . . . Bothacking | -11 -10 -10 -9 -9 ------------ Run | Scr Mat Min Mat Sto Used RIF Installer . | . . . . . Robots Hacked . | . . . . . Non-combat . | . . . . . Combat . | . . . . . Robot Hacks Applied . | . . . . . Relay Couplers Released . | . . . . . Robots Rewired . | . . . . . Allies Hacked . | . . . . . Hacks Repelled . | . . . . . Allies | -11 -10 -10 -9 -9 -------- Run | Scr Mat Min Mat Sto Total Allies . | . . . . . Largest Group . | . . . . . Highest-Rated Group . | . . . . . Highest-Rated Ally . | . . . . . Total Orders . | . . . . . Ally Attacks . | . . . . . Total Damage . | . . . . . Kills . | . . . . . Allies Corrupted . | . . . . . Allies Melted . | . . . . . Intel | -11 -10 -10 -9 -9 ------- Run | Scr Mat Min Mat Sto Robot Analysis Total 1 | . 1 . . . Derelict Logs Recovered 1 | . . 1 . . Drone Launches . | . . . . . Drone Recoveries . | . . . . . Exploration | -11 -10 -10 -9 -9 ------------- Run | Scr Mat Min Mat Sto Turns Passed 1120 | 44 427 73 167 409 Spaces Moved 860 | 44 441 59 165 151 Core 2 | 1 . . 1 . Treads . | . . . . . Legs . | . . . . . Wheels 587 | 43 441 59 44 . Hover . | . . . . . Flight 271 | . . . 120 151 Fastest Speed 34 | 50 80 80 34 34 Average Speed 65 | 79 80 80 48 34 Slowest Speed 120 | 80 80 80 120 37 Overloaded Moves . | . . . . . Propulsion Burnouts . | . . . . . Robots Hopped 1 | . . . 1 . Cave-ins Triggered . | . . . . . Exploration Rate (%) 22 | 3 53 17 12 27 Regions Visited 4 Branch Regions 2 Pre-discovered Areas . | . . . . . Known Exits Taken 3 | . 1 1 1 . Unknown Exits Taken 1 | 1 . . . . Scrap Searched 1 | . . 1 . . Spaces Dug . | . . . . . Terrain Destroyed . | . . . . . Melee . | . . . . . Projectile . | . . . . . AOE . | . . . . . Actions | -11 -10 -10 -9 -9 --------- Run | Scr Mat Min Mat Sto Total 1241 | 49 496 84 213 399 Wait 230 | . 31 26 . 173 Move 854 | 43 440 58 162 151 Hop 1 | . . . 1 . Pick Up 7 | . 3 . 3 1 Fast Attach 16 | 6 3 . 7 . Attach 6 | . 3 . 2 1 Detach 2 | . 1 . . 1 Swap . | . . . . . Drop 12 | . 3 . 8 1 Fire 29 | . 11 . 18 . Melee 56 | . . . 1 55 Ram 1 | . 1 . . . Kick . | . . . . . Crush . | . . . . . Escape Stasis . | . . . . . Rewire . | . . . . . Trap . | . . . . . Miscellaneous 27 | . . . 11 16 Route ------- -11/Scrapyard -10/Materials (discovered 4 exits: *Mat x2 / *Min x2) -10/Mines -9/Materials -9/Storage History --------- Turn | Location | Event 8 | -11/Scrapyard | Upgraded with Power slot (x1) 8 | -11/Scrapyard | Upgraded with Propulsion slot (x1) 8 | -11/Scrapyard | Upgraded with Utility slot (x1) 8 | -11/Scrapyard | Upgraded with Weapon slot (x1) 17 | -11/Scrapyard | Discovered new exit (range 16) 45 | -11/Scrapyard | Entered Materials 182 | -10/Materials | Discovered new exit (range 15) 197 | -10/Materials | Identified exit to Mines 305 | -10/Materials | Discovered new exit (range 16) 321 | -10/Materials | Build established: Mutant 370 | -10/Materials | Identified exit to Materials 472 | -10/Materials | Entered Mines 525 | -10/Mines | Learned Materials terminal intel 541 | -10/Mines | Discovered exit to Materials (range 5) 545 | -10/Mines | Entered Materials 546 | -9/Materials | Loaded intel: 12 terminal locations 547 | -9/Materials | Reached level 2 565 | -9/Materials | Upgraded with Propulsion slot (x1) 565 | -9/Materials | Upgraded with Utility slot (x1) 574 | -9/Materials | Discovered new exit (range 15) 614 | -9/Materials | Core integrity fell below 50% 619 | -9/Materials | Reached level 3 649 | -9/Materials | Destroyed 8 combat bots 692 | -9/Materials | Identified exit to Storage 697 | -9/Materials | Upgraded with Utility slot (x1) 712 | -9/Materials | Entered Storage 876 | -9/Storage | Reached level 4 975 | -9/Storage | Garrison activated, responded to threat 1039 | -9/Storage | Core integrity fell below 20% 1047 | -9/Storage | Upgraded with Power slot (x1) 1092 | -9/Storage | Lost 3 parts (1p1n1u) 1121 | -9/Storage | Self-destructed Last Messages --------------- 01084_ Destroyed Heat Sink. 01084_ G-34 Mercenary system corrupted by crushing effect. 01086_ R-06 Scavenger collects Lgt. Treads. 01087_ G-34 Mercenary destroyed. 01090_ Sneak attack on R-06 Scavenger. 01090_ Destroyed Tractor Beam. 01090_ Destroyed Lgt. Ion Engine. 01090_ Destroyed Com. Wheel. 01090_ R-06 Scavenger system corrupted by crushing effect. 01090_ R-06 Scavenger knocked back. 01091_ R-06 Scavenger system terminally corrupted. 01096_ Used Protomatter to restore core integrity (+87, depleted) 01101_ Sneak attack on A-02 Transporter. 01101_ A-02 Transporter sends out distress signal. 01105_ Triggered Alarm Trap. 01105_ An alarm sounds. 01105_ ALERT: Alarm triggered, dispatching investigation squad. 01112_ Destroyed Heat Sink. 01112_ Y-45 Defender system corrupted by crushing effect. 01116_ Y-45 Defender IFF system glitched. Map ----- +----------------------------------------------------+ | | | | | | | | | | | | | | | | | | | | | | | | | | | | | | | ?????????????????????????######################## | | ?????????????????????????# # ! | | ?????????????########????# # % | | ?????????????#%[= #????# # ! | | ?????????????#= %= ###### # % | | ?????????????#=""" %+ + # = % % | | ?????????????# """ # ##########+#########+### | | ?????????????# """ # ###### ^^ | | ?????????????#! + ^^ | | ?????????????### ####### ###### ^^ | | ???????????????###?????#@#?#####+#### ####+##+### | | ??????????????????????# # ??# #?# ^ | | ????????????????????? Yg # ! ?# #?#"" | | ???????????????????? g + ?# #?#"T]] | | ???????????????????#### g # # #?#""%][ ![ | | ??????????????????????## ## # ###= ]! [ | | ???????????????????????# ## | / + = | | ???????????????????????+ ## # ###= | | ???????????????????????# ## !# #?# | | ???????????????????????? + ?# #?#####"T"# | | ???????????????????????? ####+####?# #?????##### | | ???????????????????????? #?????????# #?????????? | | ????????????????????????^^#????????? ?????????? | | ???????????????????????? ?????????? ""?????????? | | ???????????????????????? ?????????? T ?????????? | | ????????????????????????+#?????????? ?????????? | | ???????????????????????????????????##+##????????? | | ????????????????????????????????????????????????? | | ????????????????????????????????????????????????? | | ????????????????????????????????????????????????? | | ????????????????????????????????????????????????? | | ????????????????????????????????????????????????? | | ????????????????????????????????????????????????? | | ????????????????????????????????????????????????? | | ????????????????????????????????????????????????? | +----------------------------------------------------+ Best States ------------- Heat Dissipation 59 Energy Generation 17 Energy Capacity 290 Matter Stores 300 Matter Capacity 300 Sight Range 18 Robot Scan Range 14 Terrain Scan Density 10 Additional Mass Support 6 Evasion (%) 63 Offensive Hacking 5 Defensive Hacking 5 Item Schematics ----------------- Hover Unit | -10/Materials | Hacked Robot Schematics ------------------ None Fabricated ------------ Nothing Alien Tech Used ----------------- None Achievements -------------- None Challenges ------------ None RPGLIKE | -11 -10 -10 -9 -9 --------- Run | Scr Mat Min Mat Sto Levels Raised 3 | . . . 2 1 XP Earned 8345 | 3000 135 500 2650 2060 XP Spent 7455 | 2870 . . 2850 1735 Upgrades 28 | 10 . . 6 12 Power Slot 2 | 1 . . . 1 Propulsion Slot 2 | 1 . . 1 . Utility Slot 3 | 1 . . 2 . Weapon Slot 1 | 1 . . . . Core Integrity 12 | . . . 1 11 Heat Dissipation 2 | 2 . . . . Mass Support 1 | 1 . . . . Inventory Capacity 1 | 1 . . . . Sensor Range 2 | . . . 2 . Hack Attack % 1 | 1 . . . . Hack Defense % 1 | 1 . . . . Protomatter Created 184 | . . . 62 122 Integrity Restored 588 | . . . 222 366 Core 588 | . . . 222 366 Protomatter Decayed . | . . . . . Game ------ Seed ParticleLongswordSpear Manual? 0 Play Time 00:23:50 Cumulative 37.2 hours Start 2020.01.18 @ 23:29:09 End 2020.01.19 @ 01:08:10 Sessions 1 Manual Loads 0 Difficulty Rogue Special Mode Winter2019/RPGLIKE Game No. 60 Rogue 60 Adventurer 0 Explorer 0 Win Type - Total 1 Types 1/0/0/0/0/0/0 Lore% 29 Gallery% 33 Achievement% 28 Wizard Run 0 Options --------- ASCII 0 Keyboard 0 Movement Mouse Keybinds 0 Fullscreen 1 Font 18/SmallcapsGlow Map View 76x50 Tactical HUD 1 Map Filters NONE Filters NONE Steam 1 RUN: ee3f679e-5a72-42f4-a00e-ba3b70b5eec7